[Event "HUN-chT Youth-Children 2018"]
[Site "Zalakaros"]
[Date "2018.07.28"]
[Round "5"]
[White "Hegedus, Dominik"]
[Black "Juhasz, Adam"]
[Result "1-0"]
[ECO "B00"]
[WhiteElo "2005"]
[BlackElo "1929"]
[Annotator "NA RC"]
[PlyCount "75"]
[EventDate "2018.07.26"]
[EventType "team-tourn"]
[EventCountry "HUN"]
[SourceTitle "playchess.com"]
[Source "ChessBase"]
[SourceQuality "1"]
[TimeControl "5400+30"]

{[%evp 8,73,46,32767,32767,90,32767,49,53,47,105,64,94,55,175,160,189,185,317,175,167,179,220,218,211,221,225,243,241,232,270,264,289,329,293,32767,300,326,317,334,317,311,309,313,360,362,477,523,622,664,541,538,518,477,494,508,501,472,515,514,490,32767,32767,32767,986,32767,1355,1451]} 1. e4 {[%emt 0:00:00]} b6 {[%emt 0:00:11]} 2. d4 {[%emt 0:00:00]} Bb7 {[%emt 0:00:06]} 3. Nc3 {[%emt 0:00:00]} e6 {[%emt 0:00:16]} 4. Bd3 {[%emt 0:00:00]} Bb4 {[%emt 0:00:40] LiveBook: 31 Games} 5. Nge2 {[%emt 0:01:30]} Nf6 {[%emt 0:02:39]} 6. a3 {[%emt 0:00:33]} Be7 {[%emt 0:02:04]} 7. O-O {[%emt 0:04:05]} O-O {[%emt 0:05:22]} 8. Ng3 {[%emt 0:03:45] B00: Queen's Fianchetto Defence, Nimzowitsch Defence} (8. e5 Nd5 9. Nxd5 Bxd5 10. c4 Bb7 11. f4 f5 12. d5 Bc5+ 13. Kh1 a5 14. Nc3 Na6 15. Be2 Qe7 {1-0 (38) Teodoro,E (2401)-Dutton,W (2025) Toronto 1999}) 8... Ba6 $146 {[%emt 0:09:01]} (8... d6 $14) ({Predecessor:} 8... c5 9. d5 h6 10. Bc4 exd5 11. Nxd5 Nxd5 12. Bxd5 Bxd5 13. Qxd5 Na6 14. Rd1 Bf6 15. c3 Re8 {1-0 (31) Gevorgyan,A (1723)-Avagyan,G (1477) Yerevan 2017}) 9. e5 {[%emt 0:03:35]} Bxd3 {[%emt 0:08:18]} 10. Qxd3 {[%emt 0:01:06]} Nd5 {[%emt 0:00:45]} (10... Ne8 $1 $14) 11. Nxd5 {[%emt 0:01:01]} exd5 {[%emt 0:00:03]} 12. Nf5 {[%emt 0:00:15]} d6 $2 {[%emt 0:16:11] [#]} (12... Kh8 $16 {war nötig.} 13. Qg3 Rg8) 13. Qg3 {[%emt 0:01:28]} (13. Bh6 $142 $1 {[%mdl 512]} gxh6 14. Qg3+ Bg5 15. f4) 13... g6 {[%emt 0:00:33]} 14. Bh6 {[%emt 0:01:00]} dxe5 {[%emt 0:11:07]} 15. Nxe7+ {[%emt 0:01:48]} ({Weaker is} 15. Qxe5 Bf6 $14) ({Much less strong is} 15. dxe5 $6 Re8 $16) 15... Qxe7 {[%emt 0:00:43]} 16. Bxf8 {[%emt 0:00:34]} ({Weaker is} 16. dxe5 Re8 $11) ({And not} 16. Qxe5 Qxe5 17. dxe5 Re8 $11) 16... Kxf8 {[%emt 0:02:37]} 17. dxe5 {[%emt 0:00:12]} Nd7 {[%emt 0:01:13]} 18. e6 {[%emt 0:03:17]} Nf6 {[%emt 0:03:57]} 19. exf7 {[%emt 0:00:47]} Qxf7 {[%emt 0:00:04]} 20. Rae1 {[%emt 0:02:01]} Ne4 {[%emt 0:03:04]} 21. Qe3 {[%emt 0:01:22]} Re8 {[%emt 0:03:45]} 22. f3 {[%emt 0:01:35]} Nf6 {[%emt 0:02:15]} 23. Qh6+ {[%emt 0:00:11]} Kg8 {[%emt 0:00:18]} 24. Rxe8+ {[%emt 0:00:37]} Qxe8 {[%emt 0:00:18]} 25. Qh4 {[%emt 0:01:08]} Qf7 {[%emt 0:02:23]} 26. Re1 {[%emt 0:00:25]} c5 {[%emt 0:03:14]} 27. Qf4 {[%emt 0:00:34]} Ne8 {[%emt 0:05:08]} 28. Qe5 {[%emt 0:00:19]} Nf6 {[%emt 0:02:39]} 29. Qb8+ {[%emt 0:01:10]} Kg7 {[%emt 0:00:24]} 30. Qd8 {[%emt 0:00:30]} Ng8 {[%emt 0:01:20]} 31. Re8 {[%emt 0:02:23]} d4 {[%emt 0:01:41]} 32. Re4 {[%emt 0:02:42]} h6 {[%emt 0:04:34]} 33. h4 {[%emt 0:03:00]} h5 {[%emt 0:02:18]} 34. Qb8 {[%emt 0:02:03]} Nf6 {[%emt 0:01:09]} 35. Qe5 {[%emt 0:00:50]} Kg8 {[%emt 0:03:41]} 36. Rf4 {[%emt 0:00:41]} Nd7 {[%emt 0:01:30]} 37. Qd6 $18 {[%emt 0:01:46]} Qe8 {[%emt 0:01:09]} 38. Re4 {[%emt 0:00:16]} 1-0

[Event "HUN-chT Youth-Children 2018"]
[Site "Zalakaros"]
[Date "2018.07.28"]
[Round "5"]
[White "Kovacs, Bence"]
[Black "Fule, Simon"]
[Result "1-0"]
[ECO "C77"]
[WhiteElo "1994"]
[BlackElo "2061"]
[Annotator "NA RC"]
[PlyCount "111"]
[EventDate "2018.07.26"]
[EventType "team-tourn"]
[EventCountry "HUN"]
[SourceTitle "playchess.com"]
[Source "ChessBase"]
[SourceQuality "1"]
[TimeControl "5400+30"]

{[%evp 11,110,31,34,26,36,4,12,6,13,0,10,12,23,12,32,0,12,29,54,44,51,19,39,-47,13,-4,6,0,32767,32767,33,10,20,27,32767,32767,32767,32767,32767,113,32767,2,32767,32767,93,0,162,172,32767,172,32767,60,89,87,88,120,92,32767,32767,32767,32767,32767,208,212,32767,32767,32767,131,143,122,32767,32767,32767,32767,110,32767,32767,114,95,32767,32767,102,32767,110,216,120,32767,104,113,0,0,0,141,129,140,61,264,293,995,1110,29999]} 1. e4 {[%emt 0:00:00]} e5 {[%emt 0:00:05]} 2. Nf3 {[%emt 0:00:00]} Nc6 {[%emt 0:00:06]} 3. Bb5 {[%emt 0:00:00]} a6 {[%emt 0:00:06]} 4. Ba4 {[%emt 0:00:00]} Nf6 {[%emt 0:00:05]} 5. d3 {[%emt 0:00:00]} d6 {[%emt 0:00:05]} 6. c3 {[%emt 0:00:30]} g6 {[%emt 0:00:05]} 7. Nbd2 {[%emt 0:10:07]} Bg7 {[%emt 0:00:13]} 8. Nf1 {[%emt 0:00:11]} O-O {[%emt 0:00:23]} 9. Ng3 {[%emt 0:00:06]} b5 {[%emt 0:00:19]} 10. Bc2 {[%emt 0:02:26]} Re8 {[%emt 0:01:58] C77: Ruy Lopez: 3...a6 4 Ba4 Nf6, unusual lines} (10... Bb7 11. h4 h5 12. Bg5 Qd7 13. O-O Nd8 14. d4 exd4 15. cxd4 Ne6 16. Bd2 d5 17. e5 Ne4 18. b4 Nxd2 19. Qxd2 {½-½ (89) Andreikin,D (2723)-Karttunen,M (2465) Minsk 2017 CBM 179 [Moradiabadi,E]}) 11. O-O {[%emt 0:00:30]} Bb7 {[%emt 0:00:28]} 12. Re1 {[%emt 0:07:23] LiveBook: 10 Games} d5 {[%emt 0:02:24]} 13. Qe2 {[%emt 0:00:23]} h6 {[%emt 0:03:32]} 14. a4 $146 {[%emt 0:09:31]} ({Predecessor:} 14. Bd2 Qe7 15. a4 b4 16. Rec1 a5 17. Bb3 Rad8 {0-1 (41) Serrano Marhuenda,S (2194)-Marholev,D (2419) La Roda 2006}) 14... Qd6 {[%emt 0:09:53]} 15. h4 {[%emt 0:11:27]} h5 {[%emt 0:08:12]} 16. Ng5 {[%emt 0:06:18]} b4 {[%emt 0:06:40]} 17. Kh1 {[%emt 0:32:45]} ({White should try} 17. Bd2 $11) 17... Nh7 {[%emt 0:23:54]} (17... Na5 $15) 18. Nxh7 {[%emt 0:02:06]} Kxh7 {[%emt 0:00:03]} 19. exd5 {[%emt 0:06:06]} Qxd5 {[%emt 0:00:14]} 20. Ne4 {[%emt 0:00:12]} Kh8 {[%emt 0:04:59]} 21. f3 {[%emt 0:00:56]} f5 {[%emt 0:08:59]} 22. Ng5 {[%emt 0:02:09]} a5 {[%emt 0:04:50]} 23. Qd1 {[%emt 0:00:44]} Nd8 {[%emt 0:06:58]} 24. Bb3 {[%emt 0:00:16]} Qd6 {[%emt 0:00:51]} 25. Bf4 {[%emt 0:04:39]} Re7 {[%emt 0:02:41]} 26. Qe2 {[%emt 0:00:43]} (26. Bg3 $16) 26... Bf6 {[%emt 0:00:41]} 27. Bg3 {[%emt 0:01:21]} f4 {[%emt 0:04:16]} (27... Bd5 $11 {bleibt in der Remisbreite.} 28. Qd1 Bxg5 29. hxg5 Bxb3 30. Qxb3 f4) 28. Ne4 {[%emt 0:00:59]} (28. Bf2 $16) 28... Qc6 {[%emt 0:05:19]} (28... Bxe4 $1 $11 29. Qxe4 Rb8 30. Qxg6 Nc6) 29. Bf2 {[%emt 0:00:19]} bxc3 {[%emt 0:00:47]} 30. bxc3 {[%emt 0:00:31]} Kg7 {[%emt 0:00:14]} 31. Nxf6 $2 {[%emt 0:00:50]} ({White should try} 31. d4 $18) 31... Qxf6 {[%emt 0:00:17]} 32. Qc2 {[%emt 0:01:47]} Qf5 {[%emt 0:01:39]} 33. d4 {[%emt 0:01:18]} e4 {[%emt 0:00:54]} 34. d5 {[%emt 0:00:33]} e3 {[%emt 0:00:54]} 35. Qxf5 {[%emt 0:00:09]} gxf5 {[%emt 0:00:05]} 36. Bg1 {[%emt 0:00:18]} c6 {[%emt 0:02:07]} (36... Ba6 $16) 37. d6 {[%emt 0:00:25]} Rd7 {[%emt 0:00:55]} 38. Rad1 {[%emt 0:00:06]} Nf7 {[%emt 0:00:31] [#]} 39. Bxf7 {[%emt 0:01:04]} (39. Bh2 $1 $18) 39... Kxf7 {[%emt 0:00:02]} 40. Bh2 {[%emt 0:00:08]} Ba6 {[%emt 0:00:31]} 41. Bxf4 {[%emt 0:00:43]} e2 {[%emt 0:00:03]} 42. Rb1 {[%emt 0:00:19]} Ke6 {[%emt 0:00:43]} 43. Kg1 {[%emt 0:00:55]} Kd5 {[%emt 0:00:14]} 44. Kf2 {[%emt 0:00:33]} Re8 {[%emt 0:01:45]} 45. Rb6 {[%emt 0:00:45]} Ra8 {[%emt 0:00:01]} 46. Ke3 {[%emt 0:00:31]} Kc5 {[%emt 0:00:10]} 47. Rb2 {[%emt 0:00:10]} Bc4 {[%emt 0:00:24] [#]} (47... Re8+ $16 48. Kf2 Bd3) 48. Kd2 {[%emt 0:00:26]} ({White should play} 48. Rd2 $1 $18) 48... Re8 {[%emt 0:00:31]} 49. g3 {[%emt 0:00:35]} Rg8 $1 $11 {[%emt 0:00:55] hält das Gleichgewicht.} 50. Be5 {[%emt 0:00:41]} ({White should try} 50. Reb1 $16) 50... Kd5 {[%emt 0:00:17]} 51. Bf4 {[%emt 0:00:12]} Rgg7 {[%emt 0:00:04]} 52. Rb8 {[%emt 0:00:27]} Rb7 {[%emt 0:00:18]} 53. Rb1 {[%emt 0:00:58]} ({Better is} 53. Re8 $16 c5 54. Ke3) 53... Rbd7 $2 {[%emt 0:00:42]} (53... Rxb1 $16 54. Rxb1 Ra7) 54. Re8 {[%emt 0:00:22]} c5 $18 {[%emt 0:00:57]} (54... Rg6 55. Rh8 Rf7 56. Rxh5 Rg8) 55. Rb6 {[%emt 0:00:27]} Rb7 {[%emt 0:00:10]} 56. Re5# {[%emt 0:00:11] Kxe5} 1-0

[Event "HUN-chT Youth-Children 2018"]
[Site "Zalakaros"]
[Date "2018.07.28"]
[Round "5"]
[White "Hatala, Csaba Laszlo"]
[Black "Tancsa, Tamas"]
[Result "1-0"]
[ECO "C55"]
[WhiteElo "1958"]
[BlackElo "2023"]
[Annotator "NA RC"]
[PlyCount "67"]
[EventDate "2018.07.26"]
[EventType "team-tourn"]
[EventCountry "HUN"]
[SourceTitle "playchess.com"]
[Source "ChessBase"]
[SourceQuality "1"]
[TimeControl "5400+30"]

{[%evp 15,67,8,2,32767,32767,6,4,0,18,0,8,0,20,-136,-66,-73,-60,-63,-49,-134,-129,-117,-125,-126,-58,-54,-61,-63,-58,-60,0,0,27,0,31,32,75,93,89,103,95,57,505,476,562,561,577,407,545,514,32767,434,916,1029]} 1. e4 {[%emt 0:00:00]} e5 {[%emt 0:00:07]} 2. Nf3 {[%emt 0:00:00]} Nc6 {[%emt 0:00:08]} 3. Bc4 {[%emt 0:00:00]} Nf6 {[%emt 0:00:07]} 4. d3 {[%emt 0:00:12]} Be7 {[%emt 0:01:26]} 5. Nc3 {[%emt 0:00:39]} O-O {[%emt 0:01:54]} 6. O-O {[%emt 0:00:27]} d6 {[%emt 0:00:13]} 7. h3 {[%emt 0:00:13]} Na5 {[%emt 0:00:11]} 8. Bb3 {[%emt 0:00:13]} Nxb3 {[%emt 0:00:39] LiveBook: 19 Partien} 9. axb3 {[%emt 0:00:07]} h6 {[%emt 0:00:20]} 10. Be3 {[%emt 0:00:51]} Re8 {[%emt 0:00:12] C55: Two Knights: 4 d3, 4 d4 exd4 5 e5 and Max Lange Attack} (10... a6 11. d4 exd4 12. Nxd4 Re8 13. Re1 Bf8 14. Qf3 g6 15. Rad1 Bg7 16. Nde2 Bd7 17. Nf4 Bc6 18. Nfd5 Bxd5 19. exd5 Nd7 20. Bf4 {½-½ (20) Skatchkov,P (2486)-Potapov,A (2461) Tula 2009}) 11. Re1 {[%emt 0:04:52]} Bf8 $146 {[%emt 0:00:07]} ({Predecessor:} 11... a6 12. Qd2 Bf8 13. Ne2 d5 14. exd5 Nxd5 15. Ng3 Nxe3 16. Rxe3 f6 17. Rae1 b5 18. d4 Bb7 19. dxe5 Qxd2 20. Nxd2 {0-1 (83) Roldan Hernandez,L (1393)-Fernandez Monreal,B (1182) Padron 2016}) 12. Nd2 {[%emt 0:05:53]} c6 {[%emt 0:05:25]} 13. f4 {[%emt 0:01:46]} d5 {[%emt 0:03:36]} 14. d4 $2 {[%emt 0:03:06] [#]} (14. fxe5 $11 Rxe5 15. Nf3 (15. Rxa7 Rxa7 16. Bxa7 b6 $11)) 14... exd4 {[%emt 0:02:22]} ({Black should play} 14... exf4 $1 $17 15. Bxf4 dxe4) 15. Bxd4 {[%emt 0:00:11]} Nxe4 {[%emt 0:00:18]} 16. Ndxe4 {[%emt 0:00:32]} dxe4 {[%emt 0:00:45]} 17. Na4 {[%emt 0:19:52]} (17. Rxa7 $15 Rxa7 18. Bxa7) 17... Bf5 {[%emt 0:02:25]} 18. Be3 {[%emt 0:09:24]} Qh4 {[%emt 0:00:42]} 19. Qe2 {[%emt 0:02:46]} Re6 {[%emt 0:03:10]} (19... Qg3 $17 20. Qf2 Qxf2+ 21. Kxf2 h5) 20. Qf2 $1 {[%emt 0:01:52]} Qh5 {[%emt 0:01:46]} 21. Qe2 {[%emt 0:04:20]} Qg6 {[%emt 0:00:29]} 22. Kh2 {[%emt 0:00:46]} h5 {[%emt 0:00:18] [#]} ({Besser ist} 22... b5 $15 23. Nc5 Ree8) 23. Nb6 $1 {[%emt 0:05:49]} Rd8 {[%emt 0:03:28]} 24. Rxa7 {[%emt 0:00:15]} Be7 {[%emt 0:00:05]} 25. Qf2 {[%emt 0:05:24]} Bd6 {[%emt 0:11:03]} (25... Bf6 $1 $11) 26. Rxb7 {[%emt 0:04:43]} Qh6 {[%emt 0:00:14]} 27. Nc4 {[%emt 0:01:48]} Bb8 {[%emt 0:00:46]} 28. g3 {[%emt 0:03:31]} (28. Ra1 $16) 28... h4 $2 {[%emt 0:01:56]} (28... Ree8 $14) 29. g4 {[%emt 0:00:42]} Bxg4 {[%emt 0:08:33]} 30. hxg4 {[%emt 0:00:07]} g5 {[%emt 0:00:03]} 31. Rf1 {[%emt 0:04:28]} Rf6 {[%emt 0:00:44]} 32. Kh3 {[%emt 0:02:29]} gxf4 {[%emt 0:05:18]} 33. Bd4 {[%emt 0:04:36]} e3 {[%emt 0:03:05]} (33... Rg6 $142 34. Rxb8 Rxb8 35. Qxf4 Qxf4 36. Rxf4 Re6 37. Kxh4 Rd8) 34. Nxe3 $18 {[%emt 0:01:08]} 1-0

[Event "HUN-chT Youth-Children 2018"]
[Site "Zalakaros"]
[Date "2018.07.28"]
[Round "5"]
[White "Juhasz, Judit"]
[Black "Geher, Koppany"]
[Result "1/2-1/2"]
[ECO "B47"]
[WhiteElo "1877"]
[BlackElo "2207"]
[Annotator "NA"]
[PlyCount "124"]
[EventDate "2018.07.26"]
[EventType "team-tourn"]
[EventCountry "HUN"]
[SourceTitle "playchess.com"]
[Source "ChessBase"]
[SourceQuality "1"]
[TimeControl "5400+30"]

{[%evp 12,117,31,29,19,32767,32767,9,27,32767,38,26,32767,32767,38,38,33,0,0,-50,-25,-22,0,-33,-32,-51,-43,-52,-47,-41,-36,-55,-50,-54,-62,-60,-31,-52,-54,-85,-79,-84,-41,-89,-97,-77,-99,-91,-62,32767,-65,32767,-60,-42,-58,-111,-115,32767,-78,-70,-74,-125,-131,-146,-125,-124,-86,-125,-129,32767,-133,-281,-130,-197,-132,-150,-157,-139,-157,-147,-157,-161,-158,-166,-151,-328,-225,-1398,-161,-2003,-147,-1020,-1325,-289,-156,-152,-96,-97,-66,-63,0,0,0,0,0,0,0,0]} 1. e4 {[%emt 0:00:00]} c5 {[%emt 0:00:07]} 2. Nf3 {[%emt 0:00:00]} e6 {[%emt 0:00:08]} 3. d4 cxd4 {[%emt 0:00:07]} 4. Nxd4 {[%emt 0:00:00]} Nc6 {[%emt 0:00:04]} 5. Nc3 {[%emt 0:00:08]} Qc7 {[%emt 0:00:15]} 6. Be2 {[%emt 0:00:30]} a6 {[%emt 0:00:10]} 7. O-O {[%emt 0:00:25]} Nf6 {[%emt 0:00:06]} 8. Be3 {[%emt 0:00:14]} Bb4 {[%emt 0:00:08]} 9. Na4 {[%emt 0:00:37]} Be7 {[%emt 0:00:09]} 10. Nxc6 {[%emt 0:00:47]} bxc6 {[%emt 0:00:09]} 11. Nb6 {[%emt 0:00:10]} Rb8 {[%emt 0:00:07]} 12. Nxc8 {[%emt 0:00:10]} Qxc8 {[%emt 0:00:07]} 13. e5 {[%emt 0:07:11]} Nd5 {[%emt 0:00:20]} 14. Bd4 {[%emt 0:05:02] LiveBook: 18 Games B49: Sicilian: Taimanov: 5 Nc3 Qc7 6 Be3 a6 7 Be2} (14. Bc1 Bc5 15. c4 Ne7 16. b3 Qc7 17. Bb2 d6 18. exd6 Bxd6 19. g3 Be5 20. Bxe5 Qxe5 21. Re1 Rd8 22. Qc2 a5 23. Rad1 O-O 24. Bd3 Qh5 25. Be4 g6 {½-½ (64) Brkic,A (2579)-Kveinys,A (2509) Bad Wiessee 2016}) 14... c5 {[%emt 0:00:39]} 15. Bc3 {[%emt 0:00:59]} Nxc3 {[%emt 0:02:15]} 16. bxc3 {[%emt 0:00:06]} Qc7 $146 {[%emt 0:07:42]} ({Predecessor:} 16... O-O 17. Qd3 Qc7 18. f4 Rb6 19. Rab1 Rfb8 20. Rxb6 Rxb6 21. c4 d6 {0-1 (67) Gomes,M (1692)-Marrero,J (1849) Montevideo 2018}) 17. f4 {[%emt 0:03:52]} O-O {[%emt 0:08:29]} 18. Kh1 {[%emt 0:03:13]} d6 {[%emt 0:06:47]} 19. exd6 {[%emt 0:03:26]} Bxd6 {[%emt 0:00:25]} 20. Qd2 {[%emt 0:01:35]} a5 {[%emt 0:03:58]} 21. a4 {[%emt 0:00:57]} Rfd8 {[%emt 0:03:01]} 22. Bb5 {[%emt 0:02:59]} Be7 {[%emt 0:04:07]} 23. Qe3 {[%emt 0:10:02]} Rb6 {[%emt 0:01:07]} 24. Qe4 {[%emt 0:03:12]} g6 {[%emt 0:03:00]} 25. Rab1 {[%emt 0:16:42]} Bf6 {[%emt 0:04:07]} 26. Rf3 {[%emt 0:07:21]} Qb7 {[%emt 0:04:43]} 27. Qe1 {[%emt 0:01:17]} Rbd6 {[%emt 0:04:14]} 28. Rd3 {[%emt 0:01:38]} Qc7 {[%emt 0:01:22]} 29. Qd2 {[%emt 0:09:54]} Bg7 {[%emt 0:21:05]} 30. Bc4 {[%emt 0:06:05]} Bh6 {[%emt 0:04:36]} 31. Rf1 {[%emt 0:03:02]} Rxd3 {[%emt 0:02:53]} 32. cxd3 {[%emt 0:00:05]} e5 {[%emt 0:00:18]} 33. Qa2 {[%emt 0:03:51]} exf4 {[%emt 0:01:22]} ({Schwächer ist} 33... Bxf4 34. g3 $14) 34. Rb1 {[%emt 0:01:15]} Qe7 {[%emt 0:04:49]} 35. Qf2 {[%emt 0:03:41]} Re8 {[%emt 0:03:32]} 36. d4 {[%emt 0:02:54]} cxd4 {[%emt 0:00:54]} 37. cxd4 {[%emt 0:00:01]} Qe4 {[%emt 0:03:19]} 38. Rd1 {[%emt 0:00:48]} Qe3 {[%emt 0:01:46]} 39. Qf3 {[%emt 0:00:53]} Re4 {[%emt 0:03:22]} 40. Qxe3 {[%emt 0:02:48]} fxe3 {[%emt 0:00:07]} 41. Bb5 $2 {[%emt 0:00:17] [#]} (41. Be2 $17 {is a better defense.}) 41... Bg7 {[%emt 0:03:47]} (41... e2 $1 $19 {[%cal Re2d1]} 42. Re1 Rxd4 43. Bxe2 Rxa4) 42. Kg1 {[%emt 0:02:07]} (42. g3 $17) 42... Rxd4 {[%emt 0:01:02]} ({But not} 42... e2 43. Re1 $17) 43. Rxd4 Bxd4 {[%emt 0:00:01]} 44. Kf1 {[%emt 0:00:28]} f5 {[%emt 0:00:42]} 45. g3 {[%emt 0:01:11]} Kg7 {[%emt 0:00:02]} 46. Ke2 {[%emt 0:00:06]} Kf6 {[%emt 0:00:21]} 47. Kf3 {[%emt 0:00:35]} Ke5 {[%emt 0:00:17]} 48. Bc6 $2 {[%emt 0:00:49]} (48. h3 {was necessary.}) 48... g5 {[%emt 0:00:53]} 49. h3 {[%emt 0:00:31] [#]} h6 $2 {[%emt 0:01:17]} (49... g4+ $1 50. hxg4 fxg4+ 51. Ke2 Kf6) 50. Bb7 $2 {[%emt 0:00:29] [#]} (50. g4 $17) 50... Bc5 {[%emt 0:00:05]} (50... g4+ $1 $19 {und Schwarz behält klar die Oberhand.} 51. hxg4 fxg4+ 52. Ke2 Kf5) 51. Bc6 $2 {[%emt 0:00:34]} (51. g4 $17) 51... Kd4 {[%emt 0:00:46]} 52. Ke2 {[%emt 0:00:00] [#]} Bd6 {[%emt 0:00:42]} ({Better is} 52... h5 $1 $19 53. Bd7 Ke5) 53. g4 {[%emt 0:00:32]} fxg4 {[%emt 0:00:33]} ({Black should play} 53... f4 $19 54. Bd7 Kc4 55. Bb5+ Kc3) 54. hxg4 {[%emt 0:00:05]} h5 {[%emt 0:00:20]} 55. gxh5 {[%emt 0:00:23]} g4 {[%emt 0:00:40]} ({Better is} 55... Bf8 $1 $15) 56. h6 {[%emt 0:00:28]} Be5 {[%emt 0:00:24]} 57. h7 {[%emt 0:01:09]} g3 {[%emt 0:00:36]} 58. Bf3 {[%emt 0:00:38]} Bh8 $11 {[%emt 0:00:27]} 59. Bg2 {[%emt 0:00:11]} Bg7 {[%emt 0:00:04]} 60. Bf3 {[%emt 0:00:06]} Be5 {[%emt 0:00:54]} 61. Bg2 {[%emt 0:00:18]} Bh8 {[%emt 0:00:05]} 62. Bf3 {[%emt 0:00:08]} Be5 1/2-1/2

[Event "HUN-chT Youth-Children 2018"]
[Site "Zalakaros"]
[Date "2018.07.28"]
[Round "5"]
[White "Bernath, Bence"]
[Black "Foldes, Marton Gabor"]
[Result "0-1"]
[ECO "B44"]
[WhiteElo "1838"]
[BlackElo "1590"]
[Annotator "NA RC"]
[PlyCount "70"]
[EventDate "2018.07.26"]
[EventType "team-tourn"]
[EventCountry "HUN"]
[SourceTitle "playchess.com"]
[Source "ChessBase"]
[SourceQuality "1"]
[TimeControl "5400+30"]

{[%evp 13,70,-402,32767,-420,-364,32767,-389,-421,-434,-492,-482,-464,-518,-565,-536,-542,-435,-432,-450,-518,-397,-408,-345,32767,-434,-405,-414,-541,-501,-591,-550,-545,-561,-617,-678,-781,-740,-742,32767,32767,32767,32767,32767,32767,32767,32767,32767,32767,-1091,32767,-1285,32767,-2054,32767,-29990,-29991,-29991,-29990,-29992]} 1. e4 {[%emt 0:00:00]} c5 {[%emt 0:00:17]} 2. Nf3 {[%emt 0:00:30]} Nc6 {[%emt 0:00:33]} 3. d4 {[%emt 0:00:28]} cxd4 {[%emt 0:00:26]} 4. Nxd4 {[%emt 0:00:35]} e6 {[%emt 0:00:31]} 5. c4 {[%emt 0:00:45]} Nf6 {[%emt 0:00:38]} 6. Nc3 {[%emt 0:00:19]} Bb4 {[%emt 0:00:38]} 7. Qf3 $2 {[%emt 0:00:26] B44: Sicilian: Taimanov: 5 Nb5} (7. Nxc6 $11 bxc6 8. Bd3 e5 9. O-O O-O 10. Qe2 d6 11. Na4 d5 12. a3 Bd6 13. Bg5 h6 14. Bxf6 Qxf6 15. cxd5 cxd5 16. exd5 Qf4 17. Bb5 Bg4 {½-½ (60) Karjakin,S (2782)-Vachier Lagrave,M (2789) Paris 2018}) 7... Nxd4 {[%emt 0:00:33]} 8. Qd3 {[%emt 0:00:35]} Nc6 {[%emt 0:00:52]} 9. a3 $146 {[%emt 0:00:06]} ({Predecessor:} 9. Bg5 O-O 10. O-O-O Be7 11. f4 Qc7 12. Bxf6 Qxf4+ 13. Rd2 Bxf6 14. Kb1 Nb4 {0-1 (25) Arranz Granados,F-Rincon Zapatero,A Valladolid 1984}) 9... Bxc3+ {[%emt 0:00:37]} 10. bxc3 {[%emt 0:00:16]} O-O {[%emt 0:00:53]} 11. f4 {[%emt 0:01:47]} d5 {[%emt 0:05:12]} 12. e5 {[%emt 0:01:33]} Ne4 {[%emt 0:01:37]} 13. Qf3 {[%emt 0:00:31]} f6 {[%emt 0:01:16]} 14. Bd3 {[%emt 0:02:31]} Nc5 {[%emt 0:05:46]} 15. exf6 {[%emt 0:01:47]} Rxf6 {[%emt 0:02:05]} 16. Bc2 {[%emt 0:02:15]} Ne7 {[%emt 0:17:36]} 17. Be3 {[%emt 0:01:31]} Nd7 {[%emt 0:09:39]} 18. g4 {[%emt 0:32:06]} Qc7 {[%emt 0:08:52]} 19. O-O {[%emt 0:10:39]} Qxc4 {[%emt 0:05:35]} 20. g5 {[%emt 0:00:54]} Rf8 {[%emt 0:04:20]} 21. h4 {[%emt 0:07:57]} Nf5 {[%emt 0:03:24]} 22. Bf2 {[%emt 0:03:02]} b6 {[%emt 0:07:22]} 23. Rae1 {[%emt 0:06:22]} Ba6 {[%emt 0:03:27]} 24. Bg3 {[%emt 0:02:06]} Rac8 {[%emt 0:04:28]} 25. Bxf5 {[%emt 0:02:55]} Rxf5 {[%emt 0:01:56]} 26. Rf2 {[%emt 0:03:51]} Qxc3 {[%emt 0:01:53]} 27. Rxe6 {[%emt 0:00:53]} d4 {[%emt 0:01:22]} 28. Qg2 {[%emt 0:06:10]} Nc5 {[%emt 0:02:23]} 29. Re5 {[%emt 0:01:25]} Rxe5 {[%emt 0:01:06]} 30. fxe5 {[%emt 0:00:07]} Qc1+ {[%emt 0:00:51]} 31. Kh2 {[%emt 0:00:12]} Bb7 {[%emt 0:00:29]} 32. Rf3 {[%emt 0:01:31]} d3 {[%emt 0:00:51]} 33. e6 {[%emt 0:02:21]} d2 {[%emt 0:01:03]} 34. e7 {[%emt 0:03:23]} Bxf3 {[%emt 0:01:21]} 35. Qxf3 {[%emt 0:00:37]} d1=Q {[%emt 0:00:42]} 0-1

[Event "HUN-chT Youth-Children 2018"]
[Site "Zalakaros"]
[Date "2018.07.28"]
[Round "5"]
[White "Hegedus, Luca"]
[Black "Pogany, Dorka"]
[Result "1-0"]
[ECO "A40"]
[WhiteElo "1805"]
[BlackElo "1350"]
[Annotator "NA RC"]
[PlyCount "61"]
[EventDate "2018.07.26"]
[EventType "team-tourn"]
[EventCountry "HUN"]
[SourceTitle "playchess.com"]
[Source "ChessBase"]
[SourceQuality "1"]
[TimeControl "5400+30"]

1. d4 {[%emt 0:00:00]} b6 {[%emt 0:00:09]} 2. c4 {[%emt 0:00:50]} Bb7 {[%emt 0:00:47]} 3. Nc3 {[%emt 0:00:10]} e6 {[%emt 0:00:41]} 4. e4 {[%emt 0:02:58]} Bb4 {[%emt 0:01:17]} 5. Qc2 $11 {[%emt 0:00:49] LiveBook: 88 Games} Nf6 {[%emt 0:06:21]} 6. Bd3 {[%emt 0:01:01]} d5 {[%emt 0:05:48]} 7. Qa4+ {[%emt 0:01:58]} Qd7 {[%emt 0:01:32]} 8. Qxb4 {[%emt 0:01:29]} dxe4 {[%emt 0:00:20]} 9. Be2 {[%emt 0:01:00]} e3 {[%emt 0:01:29]} 10. f3 {[%emt 0:01:00]} Qxd4 {[%emt 0:01:35]} 11. Nb5 {[%emt 0:01:00]} Qd7 {[%emt 0:02:01]} 12. Bxe3 {[%emt 0:01:17]} a6 {[%emt 0:03:07]} 13. Na3 {[%emt 0:02:15]} Nc6 {[%emt 0:00:48]} 14. Qd2 {[%emt 0:00:41]} Qe7 {[%emt 0:00:28]} 15. Nh3 {[%emt 0:01:29]} Rd8 {[%emt 0:00:40]} 16. Qc3 {[%emt 0:02:19]} h6 {[%emt 0:01:17]} 17. O-O {[%emt 0:00:39]} e5 {[%emt 0:01:03]} 18. Rad1 {[%emt 0:01:53]} O-O {[%emt 0:00:27]} 19. Rfe1 {[%emt 0:03:19]} Bc8 {[%emt 0:02:35]} 20. Nf2 {[%emt 0:00:57]} Bf5 {[%emt 0:01:30]} 21. Bd3 {[%emt 0:02:23]} Bh7 {[%emt 0:01:17]} 22. Bxh7+ {[%emt 0:00:19]} Nxh7 {[%emt 0:00:11]} 23. f4 {[%emt 0:01:49]} f6 {[%emt 0:02:27]} 24. Rxd8 {[%emt 0:02:47]} Rxd8 {[%emt 0:00:57]} 25. fxe5 {[%emt 0:00:23]} fxe5 {[%emt 0:00:35]} 26. Bf4 {[%emt 0:02:17]} Re8 {[%emt 0:04:50]} 27. Qf3 {[%emt 0:02:23]} Rf8 {[%emt 0:05:27]} 28. Qd5+ {[%emt 0:02:14]} Kh8 {[%emt 0:01:11]} 29. Bxe5 {[%emt 0:02:10]} Nf6 {[%emt 0:03:43]} 30. Qxc6 {[%emt 0:01:12]} Qb4 {[%emt 0:00:38]} 31. Bc3 {[%emt 0:00:36]} 1-0